Cogmind - Beta 15 @@@ ROGUE MODE // 2025.07.12 @ 16:01:13 Player: StaticNoob Result: Destroyed by D-53 Grenadier with Mini Grenade Launcher Performance ------------- Evolutions (0) 0 Regions Visited (2) 400 Robots Destroyed (23) 115 Value Destroyed (575) 575 Prototype IDs (0) 0 Alien Tech Used (0) 0 Bonus (0) 0 TOTAL SCORE: 1090 Bonus ------- None Cogmind --------- Core Integrity 0/250 Matter 253/300 Energy 106/250 System Corruption 0% Temperature Cool (0) Movement Rolling (195) Ox7 Location -10/Mines Parts ------- > --- POWER (1) -------- Ion Engine > --- PROPULSION (2) --- Armored Wheel > --- UTILITY (2) ------ Huge Storage Unit Seismic Detector > --- WEAPON (2) ------- Light Assault Rifle > --- INVENTORY (25) --- Light Nuclear Core Light Treads Wheel Heat Sink Small Storage Unit Large Storage Unit Large Matter Pod (150) Large Matter Pod (150) Targeting Computer Targeting Computer Tractor Beam Medium Laser Medium Laser Particle Gun Particle Gun Light Assault Rifle Light Assault Rifle Light Assault Rifle Light Assault Rifle Light Assault Rifle Grenade Launcher Peak State ------------ > --- POWER ------------ Light Nuclear Core > --- PROPULSION ------- Armored Wheel Armored Wheel > --- UTILITY ---------- Small Storage Unit Seismic Detector > --- WEAPON ----------- Assault Rifle Light Assault Rifle > --- INVENTORY -------- Improved Ion Engine Light Treads Light Treads Medium Matter Pod Targeting Computer Tractor Beam Particle Gun Grenade Launcher [Rating: 12] Favorites ----------- Power Improved Ion Engine Engine Improved Ion Engine Power Core Light Nuclear Core Propulsion Armored Wheel Treads Light Treads Wheel Armored Wheel Utility Seismic Detector Device Seismic Detector Storage Small Storage Unit Weapon Light Assault Rifle Ballistic Gun Light Assault Rifle Launcher Grenade Launcher Build | -11 -10 -10 ------- Run | Yrd Mat Min Slots Evolved . | . . . Power . | . . . Propulsion . | . . . Utility . | . . . Weapon . | . . . Parts Attached 20 | 7 9 4 Power 4 | 1 2 1 Engine 3 | 1 1 1 Core 1 | . 1 . Reactor . | . . . Propulsion 5 | 2 2 1 Treads 1 | . . 1 Leg . | . . . Wheel 4 | 2 2 . Hover . | . . . Flight . | . . . Utility 4 | 2 2 . Device 2 | 1 1 . Storage 2 | 1 1 . Processor . | . . . Hackware . | . . . Protection . | . . . Artifact . | . . . Weapon 7 | 2 3 2 Energy Gun . | . . . Energy Cannon . | . . . Ballistic Gun 6 | 2 3 1 Ballistic Cannon . | . . . Launcher 1 | . . 1 Special Weapon . | . . . Impact Weapon . | . . . Slashing Weapon . | . . . Piercing Weapon . | . . . Special Melee Weapon . | . . . Unidentified Prototypes . | . . . Parts Lost 6 | . 1 5 Power 2 | . 1 1 Propulsion 2 | . . 2 Utility . | . . . Weapon 2 | . . 2 Highest Loss Streak 5 | . 1 5 To Critical Strikes . | . . . Average Backups 12 | 2 10 23 Power 1 | . . 1 Propulsion 2 | 1 2 2 Utility 4 | . 3 8 Weapon 4 | . 3 11 Tool/Special . | . . . Unused Backups 22 | . 2 20 Power 2 | . 1 1 Propulsion 3 | . 1 2 Utility 8 | . . 8 Weapon 9 | . . 9 Tool/Special . | . . . Average Slot Usage (%) 99 | . 99 99 Engine 7 | . 6 13 Core 5 | . 7 . Wheel 27 | . 28 27 Device 14 | . 14 14 Storage 14 | . 14 14 Ballistic Gun 27 | . 28 27 Peak Build Rating 12 | 7 12 12 Average Rating 10 | 5 10 11 On Entrance 6 | . 7 12 Naked Turns . | . . . Heaviest Build 90 | 14 90 90 Greatest Support 26 | 26 26 24 Greatest Overweight (x) 7 | . 3 7 Average Overweight (x) 1 | . . 3 Largest Inventory Capacity 25 | 8 25 25 Average Capacity 16 | 7 14 25 Most Carried 25 | 4 23 25 Average Carried 13 | 2 10 23 Final Capacity 25 | 8 25 25 Final Carried 23 | 4 23 21 Class Distribution -------------------- 100% | Mutant Dominant Class ---------------- Mutant | -10/Materials Mutant | -10/Mines Resources | -11 -10 -10 ----------- Run | Yrd Mat Min Matter Collected 902 | 208 376 318 Remotely . | . . . Salvage Created 797 | 111 438 248 Parts 62 | 11 29 22 Haulers Intercepted 1 | . 1 . Recyclers Shooed 2 | . 1 1 Parts Field Recycled . | . . . Retrieved Matter . | . . . Parts Self-Destructed . | . . . Prevented . | . . . Kills | -11 -10 -10 ------- Run | Yrd Mat Min Combat Hostiles Destroyed 17 | . 10 7 Guns 15 | . 10 5 AOE 2 | . . 2 Classes Destroyed 7 | 2 4 1 Worker 1 | . . 1 Tunneler 2 | 2 . . Hauler 1 | . 1 . Recycler 1 | 1 . . Watcher 1 | . 1 . Swarmer 5 | . 3 2 Grunt 12 | . 7 5 Best Kill Streak 4 | 3 4 3 Combat Bots Only 4 | . 4 2 Max Kills in Single Turn 1 | 1 1 1 Gunslinging . | . . . Exploded 1 | . . 1 Melee . | . . . Uniques/NPCs Destroyed . | . . . Combat | -11 -10 -10 -------- Run | Yrd Mat Min Hostile Shots Fired 115 | . 63 52 Missed 42 | . 22 20 Hits 73 | . 41 32 Projectile 73 | . 41 32 AOE 12 | . . 12 Critical Strikes 3 | . 3 . Damage Taken 1232 | . 496 736 Core 280 | . 85 195 Absorbed by Shields . | . . . Core Remaining (%) 100 | 100 . . Volleys Fired 113 | 10 70 33 Largest 2 | 2 2 2 Hottest 40 | 40 40 40 Shots Fired 224 | 20 140 64 Gun 222 | 20 140 62 Cannon . | . . . Launcher 2 | . . 2 Special . | . . . Kinetic 222 | 20 140 62 Thermal . | . . . Explosive 2 | . . 2 Electromagnetic . | . . . Robot Hit Streak 11 | 8 10 11 Robot Miss Streak 4 | 2 4 2 Penetration Max . | . . . Secondary Targets 3 | . 2 1 Max Gunslinging Chain 1 | . 1 1 Shots Hit Robots 137 | 13 82 42 Core Hits 61 | 4 33 24 Critical Kills . | . . . Critical Parts Destroyed . | . . . Critical Strikes . | . . . Melee Attacks . | . . . Impact . | . . . Slashing . | . . . Piercing . | . . . Sneak Attacks . | . . . Combat Hostiles . | . . . Follow-up Attacks . | . . . Damage Inflicted 1366 | 143 821 402 Guns 1309 | 143 821 345 Cannons . | . . . Explosions 57 | . . 57 Melee . | . . . Ramming . | . . . Kinetic 1309 | 143 821 345 Thermal . | . . . Explosive 57 | . . 57 Electromagnetic . | . . . Impact . | . . . Slashing . | . . . Piercing . | . . . Highest Corruption . | . . . Average Corruption . | . . . Corruption Purged . | . . . Corruption Blocked . | . . . Overload Shots . | . . . Overflow Damage . | . . . Projectiles . | . . . Explosions . | . . . Melee . | . . . Knockbacks . | . . . Impact . | . . . Kinetic . | . . . Secondary . | . . . Self-Inflicted Damage . | . . . Shots . | . . . Rammed . | . . . Targets Rammed . | . . . Kicked . | . . . Crushed . | . . . Highest Temperature 53 | . 53 20 Average Temperature 7 | . 9 5 Received Heat Transfer 435 | . 282 153 Siege Activations . | . . . Martial Activations . | . . . Shielding Activations . | . . . Robots Disrupted . | . . . Combat Hostiles . | . . . Robots Corrupted . | . . . Combat Hostiles . | . . . Parts Fried . | . . . Impact Corruptions . | . . . Robots Melted . | . . . Combat Hostiles . | . . . Parts Melted . | . . . Heat Transferred . | . . . Parts Sabotaged . | . . . Parts Stolen . | . . . Parts Stripped . | . . . Power Chain Reactions . | . . . Alert | -11 -10 -10 ------- Run | Yrd Mat Min Maximum Alert Level . | . . . Low Security (%) 100 | 100 100 100 Level 1 . | . . . Level 2 . | . . . Level 3 . | . . . Level 4 . | . . . Level 5 . | . . . High Security . | . . . Max Security . | . . . Peak Influence 100 | 5 100 83 Initial . | . . . Average 28 | . 29 33 Influence Increases 496 | 15 298 183 Destroy 0b10 Robot/C 340 | . 200 140 Destroy 0b10 Robot/NC 30 | 15 10 5 Destroy Leader 84 | . 54 30 Successful Hack 4 | . 4 . Destroy Structure 8 | . . 8 Lose Combat Pursuer 30 | . 30 . Influence Decreases 483 | 15 298 170 Time Decay 410 | 15 275 120 Lost Part 50 | . . 50 Purge Threat 23 | . 23 . Squads Dispatched 2 | . 2 . Investigation . | . . . Extermination . | . . . Reinforcement 2 | . 2 . Assault . | . . . Garrison . | . . . Intercept . | . . . Searches Triggered . | . . . Construction Impeded . | . . . Haulers Reinforced . | . . . Active Scanning Responses . | . . . Cargo Convoy Interrupts . | . . . Stealth | -11 -10 -10 --------- Run | Yrd Mat Min Distress Signals 3 | . 3 . Communications Jammed . | . . . Distress Signals . | . . . Times Spotted 35 | . 24 11 Peak Tracking Total 5 | . 5 3 Tactical Retreats 2 | . 2 . Traps | -11 -10 -10 ------- Run | Yrd Mat Min Traps Triggered . | . . . Indirectly . | . . . Trap Hack Attempts . | . . . Triggered . | . . . Disarmed . | . . . Reprogrammed . | . . . Reused . | . . . Traps Extracted . | . . . Installed . | . . . Triggered . | . . . Machines | -11 -10 -10 ---------- Run | Yrd Mat Min Machines Disabled . | . . . Max in Single Turn . | . . . Machines Repaired . | . . . Machines Dismantled . | . . . Machines Sabotaged . | . . . Overloaded Fab Kills . | . . . Hacking | -11 -10 -10 --------- Run | Yrd Mat Min Machines Accessed 6 | . 6 . Terminals 5 | . 5 . Fabricators . | . . . Repair Stations . | . . . Recycling Units 1 | . 1 . Scanalyzers . | . . . Garrison Access . | . . . Total Hacks 19 | . 19 . Successful 7 | . 7 . Failed 11 | . 11 . Catastrophic 2 | . 2 . Database Lockouts 1 | . 1 . Manual 12 | . 12 . Terminals 16 | . 16 . Fabricators . | . . . Repair Stations . | . . . Recycling Units 3 | . 3 . Scanalyzers . | . . . Garrison Access . | . . . Terminal Hacks 5 | . 5 . Robot Analysis 2 | . 2 . Unreport Threat 1 | . 1 . Locate Traps 2 | . 2 . Fabricator Hacks . | . . . Repair Station Hacks . | . . . Recycling Unit Hacks 2 | . 2 . Process 1 | . 1 . Retrieve Matter 1 | . 1 . Scanalyzer . | . . . Garrison Access Hacks . | . . . Unauthorized Hacks . | . . . Terminals . | . . . Fabricators . | . . . Repair Stations . | . . . Recycling Units . | . . . Scanalyzers . | . . . Garrison Access . | . . . Data Cores Recovered . | . . . Used . | . . . Hacking Detections 5 | . 5 . Full Trace Events . | . . . Feedback Events . | . . . Feedback Blocked . | . . . Robot Schematics Acquired . | . . . Robots Built . | . . . Authchips . | . . . Time . | . . . Total Robot Build Rating . | . . . Part Schematics Acquired . | . . . Parts Built . | . . . Authchips . | . . . Time . | . . . Total Part Build Rating . | . . . Parts Repaired . | . . . Time . | . . . Parts Recycled . | . . . Recycled Matter 179 | . 179 . Retrieved Matter 179 | . 179 . Retrieved Components . | . . . Parts Scanalyzed . | . . . Part Schematics Acquired . | . . . Parts Damaged . | . . . Bothacking | -11 -10 -10 ------------ Run | Yrd Mat Min Used RIF Installer . | . . . Robots Hacked . | . . . Non-combat . | . . . Combat . | . . . Robot Hacks Applied . | . . . Relay Couplers Released . | . . . Fabnet Peak Effective % . | . . . Robots Rewired . | . . . Allies Hacked . | . . . Hacks Repelled . | . . . Allies | -11 -10 -10 -------- Run | Yrd Mat Min Total Allies . | . . . Largest Group . | . . . Highest-Rated Group . | . . . Highest-Rated Ally . | . . . Total Orders . | . . . Ally Attacks . | . . . Total Damage . | . . . Kills . | . . . Allies Corrupted . | . . . Allies Melted . | . . . Intel | -11 -10 -10 ------- Run | Yrd Mat Min Active Infowar (turns) 1127 | 11 856 260 Seismic 1127 | 11 856 260 Robot Analysis Total 2 | . 2 . Derelict Logs Recovered 1 | . . 1 Drone Launches . | . . . Drone Recoveries . | . . . Exploration | -11 -10 -10 ------------- Run | Yrd Mat Min Turns Passed 1204 | 88 856 260 Spaces Moved 769 | 53 598 118 Core 3 | 3 . . Treads . | . . . Legs . | . . . Wheels 766 | 50 598 118 Hover . | . . . Flight . | . . . Fastest Speed 50 | 50 85 135 Average Speed 107 | 87 103 136 Slowest Speed 195 | 90 135 195 Overloaded Moves . | . . . Propulsion Burnouts . | . . . Robots Hopped . | . . . Potential Cave-ins . | . . . Cave-ins Triggered . | . . . Exploration Rate (%) 40 | 3 83 36 Regions Visited 2 Branch Regions 1 Pre-discovered Areas 1 | . . 1 Known Exits Taken . | . . . Unknown Exits Taken 2 | 1 1 . Scrap Searched 1 | . . 1 Spaces Dug . | . . . Terrain Destroyed 9 | . . 9 Melee . | . . . Projectile . | . . . AOE 9 | . . 9 Terrain Rammed . | . . . Walls Destroyed . | . . . Machines Disabled . | . . . Actions | -11 -10 -10 --------- Run | Yrd Mat Min Total 958 | 73 720 165 Wait 18 | . 12 6 Move 767 | 52 597 118 Hop . | . . . Pick Up 28 | 4 22 2 Fast Attach 9 | 7 2 . Attach 4 | . 1 3 Detach . | . . . Swap 8 | . 6 2 Drop 11 | . 10 1 Fire 113 | 10 70 33 Melee . | . . . Ram . | . . . Kick . | . . . Crush . | . . . Escape Stasis . | . . . Rewire . | . . . Trap . | . . . Miscellaneous . | . . . Route ------- -11/Scrapyard -10/Materials (discovered 3 exits: [*Mat x2] / [*Min]) -10/Mines (discovered 2 exits: [*Mat x2]) History --------- Turn | Location | Event 11 | -11/Scrapyard | Discovered new exit (range 16) 89 | -11/Scrapyard | Entered Materials 250 | -10/Materials | Central database locked down 329 | -10/Materials | Discovered new exit (range 10) 340 | -10/Materials | Build established: Mutant 588 | -10/Materials | Discovered new exit (range 11) 607 | -10/Materials | Discovered new exit (range 9) 945 | -10/Materials | Entered Mines 1056 | -10/Mines | Discovered new exit (range 4) 1093 | -10/Mines | Learned location of Mines (-9) 1108 | -10/Mines | Discovered new exit (range 7) 1128 | -10/Mines | Core integrity fell below 50% 1169 | -10/Mines | Assembled infested the area 1200 | -10/Mines | Core integrity fell below 20% 1205 | -10/Mines | Destroyed by D-53 Grenadier with Mini Grenade Launcher Last Messages --------------- 01130_ G-47 Trooper destroyed. 01132_ G-34 Mercenary destroyed. 01137_ K-01 Serf destroyed. 01140_ Acquired 18 matter. 01169_ ALERT: Infestation in the mines, dispatching Demolisher response squad. 01175_ T-07 Excavator is excavating. 01176_ K-01 Serf collects debris. 01179_ S-10 Pest suffers critical hit (Destroy). 01179_ S-10 Pest destroyed. 01186_ C-30 ARC bursts open, deploying its payload. 01186_ D-53 Grenadier unfolds itself. 01188_ T-07 Excavator is excavating. 01193_ Arm. Wheel destroyed. 01194_ Lgt. Assault Rifle destroyed. 01199_ Imp. Ion Engine destroyed. 01200_ The unstable cave ceiling collapses. 01203_ Lgt. Assault Rifle destroyed. 01203_ Lgt. Treads destroyed. Map ----- +----------------------------------------------------+ | ?????????????????????????????????????????????????? | | ?????????????????????????????????????????????????? | | ?????????????????????????????????????????????????? | | ?????????????????????????????????????????????????? | | ?????????????????????????????????????????????????? | | ???????????????????????????????????# ???????????? | | ?????????????????????????????????# #?##???????? | | ????????????????????????????????? ## ???????? | | ???????????????????????????????? ???????? | | ???????????????????????????????? ???????? | | ??????????????????????? ????????? ##?????? | | ??????????????????????# ??????????? ##????? | | ????????????????? ??# ???????????# ##???? | | ???????????????? #?# ????????????# ##??? | | ???????????????? ## ?##????????## #??? | | ????????????????? # ###????## ##?? | | ??????????????????# ###### """ ### | | ???????????????????# """ """ | | ???????????????????# """ """ % [ | | ???????????????????# """ #### ## | | ???????????????##### ## #### # | | ??????????????## ## ##??#### | | ??????????????# ## ##??????? | | ??????????????# ## ##???????? | | ??????????????# ### ##??####### | | ??????????????# @ d # ###???# | | ??????????????# d ####??# | | ??????????????# ## #??# < | | ??????????????????## ### k #?# | | ???????????????????# # # ##?##### #?# | | ???????????????????## ####### #??????? ## | | ????????????????????###??????# #????????#### | | ?????????????????????????????# #???????????# | | ????????????????????????????? #???????????####### | | ?????????????????????????????###?????????????????? | | ?????????????????????????????????????????????????? | | ?????????????????????????????????????????????????? | | ?????????????????????????????????????????????????? | | ?????????????????????????????????????????????????? | | ?????????????????????????????????????????????????? | | ?????????????????????????????????????????????????? | | ?????????????????????????????????????????????????? | | ?????????????????????????????????????????????????? | | ?????????????????????????????????????????????????? | | | | | | | | | | | | | +----------------------------------------------------+ Best States ------------- Heat Dissipation 25 Energy Generation 14 Energy Capacity 265 Matter Stores 300 Matter Capacity 300 Sight Range 16 Terrain Scan Density 10 Evasion (%) 44 Item Schematics ----------------- None Robot Schematics ------------------ None Fabricated ------------ Nothing Repaired ---------- Nothing Alien Tech Used ----------------- None Achievements -------------- None Challenges ------------ None Game ------ Seed MeleeGravjetShredder Manual? 0 Play Time 00:11:19 Cumulative 109.7 hours Start 2025.07.12 @ 15:52:01 End 2025.07.12 @ 16:01:13 Sessions 1 Manual Loads 0 Difficulty Rogue Special Mode None Game No. 111 Rogue 111 Adventurer 0 Explorer 0 Win Type - Total 2 Types 1/0/1/0/0/0/0/0/0/0 Lore% 60 Gallery% 59 Achievement% 53 Wizard Run 0 Options --------- Layout 1 ASCII 0 Keyboard 0 Movement Mouse Keybinds 0 Fullscreen 1 Font 24/Smallcaps Map View 50x35 Zoom Use 0% Tactical HUD 1 Map Filters NONE Filters NONE Steam 1 RUN: 552f4643-de35-47ed-aef0-f85541426494